{"text_format":"1","workbook":"xlsx","n_sheets":9,"sheets":["1. Startside","2. Introduksjon til evaluering","3. Topografi og grunnforhold","4. Naturfare","5. Nærføring","6. Forutsetning","7. Miljø","8. Resultat og plott","Logg"],"not_rendered":{"charts":7,"images":9,"macros":1,"external_links":0,"defined_names":3,"comments":0,"pivot_tables":0},"unopened":[],"bounds":{"document_bytes":16777216,"sheet_cells":100000,"rows_first":2000,"rows_last":500,"rows_between":2000,"halvings":0,"cell_chars":16384,"cell_head_chars":4096},"cells_cut":0,"cells_raw":0,"read":"whole","date_system":"1900"}

{"sheet":"1. Startside","index":0,"n_rows":31,"n_cols":5,"rows_kept":31,"cut":false,"hidden":false,"merged":[[27,13,29,20],[1,2,2,2],[1,3,1,4],[2,3,2,4],[3,1,6,2]]}
[]
[null,"TidligSøk","Prosjekttittel","Prosjektnr."]
[null,null,null,"2023xxxx"]
[null,"Prosjekttittel skrive inn her",null,"Utført av:","     Dato: "]
[null,null,null,"PQF","xx.xx.2023"]
[null,null,null,"Kontr.: ","    Dato: "]
[null,null,null,"DEF","xx.xx.2023"]
[]
[null,"Hensikt"]
[null,"Dette er et verktøy og prosess hvor hensikten er å få en grov oversikt over grunnforhold og om det er tema eller mangler i underlaget som kan bidra til"]
[null,"usikkerhet i beslutningsgrunnlag. Dokumentene kan oppdateres underveis i planleggingsprosessen. Resultatet kommer til slutt som et radardiagram."]
[null,"Jo større figuren er, jo mer kostnadsdrivende kan de geotekniske faktorene være. Hvis diagrammet peker lengre ut på en akse enn på en annen, indikerer "]
[null,"det at det er større usikkerhet langs aksen med størst utslag."]
[]
[null,"Arkene kan gås igjennom i nummerert rekkefølge."]
[]
[null,"Prosessen blir best om dere er en gruppe som kan diskutere de ulike faktorene som kartlegges. Spørsmålene er vinklet slik at de fokuserer på en"]
[null,"geoteknisk og ingeniørgeologisk vurdering av temaet. Det bør derfor være en som er kjent med hva som kreves ved fundamentering med i gruppen."]
[]
[null,"Arkene med beregninger er beskyttet, passordet er \"blankt\"."]
[]
[]
[null,"Navn på arket/ nummer","Kommentar"]
[null,"1. Startside","Forklaring på prosessens gang og bruk av verktøyet"]
[null,"2. Introduksjon til evaluering","Forklaring til vektall og score"]
[null,"3. Topografi og grunnforhold","Evaluering av faktorer som omfatter topografi og grunnforhold"]
[null,"4. Naturfare","Evaluering av faktorer som omfatter naturfare"]
[null,"5. Nærføring (avstand fra)","Evaluering av faktorer som omfatter prosjektets nærføring til omgivelsene"]
[null,"6. Forutsetning","Evaluering av faktorer som er prosjektets forutsetninger og som har betydning for grunnforhold og fundamentering"]
[null,"7. Miljø","Evaluering av faktorer som omfatter grunnforhold og miljø"]
[null,"8. Resultat og Plott","Resultater og plott fra prosess 1 til 5 "]

{"sheet":"2. Introduksjon til evaluering","index":1,"n_rows":119,"n_cols":5,"rows_kept":119,"cut":false,"hidden":false,"merged":[[89,1,92,2],[1,2,2,2],[1,3,1,4],[2,3,2,4],[3,1,6,2],[87,2,88,2],[87,3,87,4],[88,3,88,4]]}
[]
[null,"TidligSøk","Prosjekttittel","Prosjektnr."]
[null,null,null,{"$f":"'1. Startside'!D3","v":"2023xxxx"}]
[null,"Prosjekttittel skrives inn her",null,"Utført av:","     Dato: "]
[null,null,null,{"$f":"'1. Startside'!D5","v":"PQF"},{"$f":"'1. Startside'!E5","v":"xx.xx.2023"}]
[null,null,null,"Kontr.: ","    Dato: "]
[null,null,null,{"$f":"'1. Startside'!D7","v":"DEF"},{"$f":"'1. Startside'!E7","v":"xx.xx.2023"}]
[]
[]
[null,"I de neste arkene skal man vurdere det aktuelle prosjektet og det man vet om grunnforholdene. Grunnforholdene er delt opp i 28 ulike geotekniske faktorer, fordelt "]
[null,"på 5 tema som er kalt \"Topografi og grunnforhold\", \"Naturfare\", \"Nærføring\", '\"Forutsetning\" og \"Miljø\". Hver faktor skal gis et vekttall, knyttet til ditt spesifikke"]
[null,"prosjekt, og deretter en score. En veiledning med eksempler for to alternative metoder for  valg av vekttall er vist lenger ned på denne siden."]
[]
[]
[null,"Celler som skal fylles ut"]
[null,"Celler som er låst, men de kan låses opp uten passord"]
[]
[]
[null,"Poengverdiene for hver faktor framkommer som produkt av vekttall og score."]
[null,"Vekttallene (0-3) er basert på faktorenes betydning for kostnadene for det aktuelle prosjektet. "]
[null,"Scoren bestemmes ut fra angitte kriterier for hver enkelt faktor.     "]
[]
[]
[]
[]
[]
[]
[]
[]
[]
[]
[]
[]
[]
[]
[]
[]
[]
[]
[]
[]
[]
[]
[]
[]
[]
[]
[]
[]
[]
[]
[]
[]
[]
[]
[]
[]
[]
[]
[]
[]
[]
[]
[]
[]
[]
[]
[]
[]
[]
[]
[]
[]
[]
[]
[]
[]
[]
[]
[]
[]
[]
[]
[]
[]
[]
[]
[null,"TidligSøk","Prosjekttittel","Prosjektnr."]
[null,null,null,{"$f":"'1. Startside'!D3","v":"2023xxxx"}]
[null,{"$f":"'1. Startside'!B4","v":"Prosjekttittel skrive inn her"},null,"Utført av:","     Dato: "]
[null,null,null,{"$f":"'1. Startside'!D5","v":"PQF"},{"$f":"'1. Startside'!E5","v":"xx.xx.2023"}]
[null,null,null,"Kontr.: ","    Dato: "]
[null,null,null,{"$f":"'1. Startside'!D7","v":"DEF"},{"$f":"'1. Startside'!E7","v":"xx.xx.2023"}]
[]
[]
[null,"Forslag til vekting, metode A"]
[null,"Faktorens betydning for kostnadene i et prosjekt bør sees i sammenheng med prosjektets totale byggekostnad. "]
[null,"Prosentvis andel av de totale byggekostnadene for vektingen kan typisk være:"]
[null,"0 Ingen: <0,1%, 1 Liten: 0,1-1%, 2 Middels: 1-5%, 3 Stor: >5% "]
[]
[]
[]
[]
[]
[]
[]
[]
[]
[]
[]
[]
[]
[null,"Forslag til vekting, metode B"]
[null,"Nedenfor er det satt opp eksempler på fire ulike bygg, samt at det i tabellen er satt opp en mulig vekting for byggene."]
[null,"Eksempel bygg 1: Lett 1 et. lagerbygg uten kontordel med asfaltert gulv på grunn"]
[null,"Eksempel bygg 2: Standard kontor- og næringsbygg på 2-3 et. over bakken og 1. et. under bakken"]
[null,"Eksempel bygg 3: Standard kontor- og næringsbygg på 4-7 et. over bakken og 2 et. under bakken"]
[null,"Eksempel bygg 4: Standard kontor- og næringsbygg på 8 eller flere et. over bakken og 3 eller flere et. under bakken "]
[null,"eller spesielle bygg med store laster, store spennvidder eller ekstra strenge krav til setninger og vibrasjoner"]

{"sheet":"3. Topografi og grunnforhold","index":2,"n_rows":34,"n_cols":10,"rows_kept":34,"cut":false,"hidden":false,"merged":[[3,5,8,5],[3,6,8,6],[3,7,8,7],[3,8,8,8],[1,1,1,4],[3,0,8,0],[3,1,8,1],[3,2,8,2],[3,3,8,3],[3,4,8,4],[9,4,18,4],[9,0,18,0],[9,1,18,1],[9,2,18,2],[9,3,18,3],[19,8,21,8],[19,7,21,7],[19,6,21,6],[9,5,18,5],[9,6,18,6],[9,7,18,7],[9,8,18,8],[19,5,21,5],[19,4,21,4],[19,3,21,3],[19,2,21,2],[19,1,21,1],[19,0,21,0],[23,0,27,0],[23,1,27,1],[23,2,27,2],[23,3,27,3],[23,4,27,4],[23,5,27,5],[23,6,27,6],[23,7,27,7],[23,8,27,8],[28,5,31,5],[28,6,31,6],[28,7,31,7],[28,8,31,8],[28,0,31,0],[28,1,31,1],[28,2,31,2],[28,3,31,3],[28,4,31,4]]}
["Grunnforhold i tidlig fase - Statsbygg"]
["Topografi og grunnforhold",{"$f":"'2. Introduksjon til evaluering'!B4","v":"Prosjekttittel skrives inn her"},null,null,null,"Usikkerhet i data (oppgi høyeste mulige score)"]
["Faktorer","Vekttall","Score","Produkt","Forklaring til valg av score","Høy score","Produkt","Kommentarer/begrunnelser/usikkerhet","Potensielle stoppkriterier","Linker/kilder"]
["Topografi",2,1,{"$f":"B4*C4","v":2},"0 Tilnærmet flatt, 1 Slakere enn 1:15, 2 Brattere enn 1:15, men slakere enn 1:3, 3 Brattere enn 1:3",1,{"$f":"B4*F4","v":2},null,"Tomter som er så bratte at det umuliggjør bruk av normale anleggsmaskiner og utstyr vil kunne bli svært kostbart å bygge på.","Lag høydeprofil gjennom tomta og et godt stykke utenfor tomta. Husk å vurdere om det kan være marbakke i sjø, elv og vann som bidrar til større høydeforskjell.\n"]
[null,null,null,null,null,null,null,null,null,"http://norgeskart.no"]
[null,null,null,null,null,null,null,null,null,"Det kan genereres høydeprofiler i andre kartdatabaser også, som f.eks. NVEs aktsomhetskart. For ev. modellering finnes det avansert terrengdata på:"]
[null,null,null,null,null,null,null,null,null,"https://hoydedata.no"]
[null,null,null,null,null,null,null,null,null,"og sjødybder kan finnes på:"]
[null,null,null,null,null,null,null,null,null,"https://dybdedata.kartverket.no"]
["Løsmasser",3,2,{"$f":"B10*C10","v":6},"0 Meget faste masser (berg), 1 Faste løsmasser (f.eks. morenemateriale, fyllmasser av god geotekniske kvalitet), 2 Middels faste løsmasser (f.eks. elvavsetninger), 3 Bløte løsmasser (f.eks. marine avsetninger, torv og myr, masser med høyt organisk innhold og fyllmasser av dårlig geoteknisk kvalitet)",3,{"$f":"B10*F10","v":9},null,"Normalt frarådes bygging på torv, søppelfylling eller annet jordmateriale med høyt organisk innhold.","NGUs løsmassekart:"]
[null,null,null,null,null,null,null,null,null,"https://geo.ngu.no/kart/losmasse_mobil"]
[null,null,null,null,null,null,null,null,null,"Flybilder og historiske flybilder:"]
[null,null,null,null,null,null,null,null,null,"https://norgeibilder.no"]
[null,null,null,null,null,null,null,null,null,"For konkrete prosjekter anbefales det å bestille flyfoto i bedre oppløsning enn de som er tilgjengelige på nett. For en god del områder finnes det flere årganger med flyfoto tilgjengelig enn de som nettsidene viser. Andre kartleverandører har også gode tjenester på historiske flyfoto."]
[null,null,null,null,null,null,null,null,null,"Nasjonal database for grunnundersøkelser NADAG:"]
[null,null,null,null,null,null,null,null,null,"https://geo.ngu.no/kart/nadag_mobil"]
[null,null,null,null,null,null,null,null,null,"Offentlige byggherrer, direkte henvendelser og geotekniske rapporter via einnsyn:"]
[null,null,null,null,null,null,null,null,null,"https://einnsyn.no"]
[null,null,null,null,null,null,null,null,null,"Kommunens byggesaksarkiv bør sjekkes, se på nabotomter om det finnes grunnundersøkelser der også."]
["Løsmassemektighet",3,2,{"$f":"B20*C20","v":6},"0 0-3 m, 1 3-15 m,  2 15-50 m, skrått berg eller store variasjoner i dybder til berg 3 Over 50 m",3,{"$f":"B20*F20","v":9},null,null,"Som ovenfor. I tillegg nasjonal grunnvannsdatabase GRANADA:\n\nhttps://geo.ngu.no/kart/granada_mobil \n\nVær oppmerksom på at det ikke alltid legges inn riktige verdier for dybder fra terreng til berg i Granada, da det er brønnens plassering og vann- eller energ"]
[null,null,null,null,null,null,null,null,null,"https://geo.ngu.no/kart/granada_mobil"]
[null,null,null,null,null,null,null,null,null,"Vær oppmerksom på at det ikke alltid legges inn riktige verdier for dybder fra terreng til berg i Granada, da det er brønnens plassering og vann- eller energigiverevne som er primærhensikt med databasen."]
["Behov for sprengning under fundamenter eller behov for bergrom under terreng",2,1,{"$f":"B23*C23","v":2},"0 Ingen, 1 En sokkel/kjelleret. i berg, 2 To kjelleret. i berg, 3 Mer enn to kjelleret. i berg eller kompliserte anlegg med tunneler",3,{"$f":"B23*F23","v":6},null,null,"Som ovenfor.\n"]
["Grunnvannstand og poretrykk",3,1,{"$f":"B24*C24","v":3},"0 GV > 2m under uk bygg/byggegrop, poreundertrykk, 1 GV under uk bygg/byggegrop, hydrostatisk, 2 GV over uk bygg/byggegrop, hydrostatisk, 3 GV over uk bygg/byggegrop, poreovertrykk",3,{"$f":"B24*F24","v":9},null,"Høyt artesisk trykk/poreovertrykk i grunnen kan være svært kostnadsdrivende.","Se ovenfor."]
[]
[]
[]
[]
["Berggrunn",1,1,{"$f":"B29*C29","v":1},"0 Meget faste bergarter (f.eks. gabbro, granitt, sandstein), 1 Faste bergarter (f.eks. kvartsitt, Larvikitt), 2 Middels faste bergarter (f.eks. glimmerskifer, kalkstein), 3 Bløte bergarter (f.eks. fyllitt, svartskifer)  ",3,{"$f":"B29*F29","v":3},null,null,"NGUs berggrunnskart:"]
[null,null,null,null,null,null,null,null,null,"https://geo.ngu.no/kart/berggrunn_mobil"]
[null,null,null,null,null,null,null,null,null,"NGUs database og grus- og pukkforekomster, her kan man finne data på bergarter og teknisk kvalitet:"]
[null,null,null,null,null,null,null,null,null,"https://geo.ngu.no/kart/grus_pukk_mobil"]
["Total sum score",null,null,{"$f":"SUM(D4:D31)","v":20},null,null,{"$f":"SUM(G4:G31)","v":38}]
["Maks. oppnåelig vektet total sum",null,null,{"$f":"SUM(B4:B31)*3","v":42}]

{"sheet":"4. Naturfare","index":3,"n_rows":47,"n_cols":10,"rows_kept":47,"cut":false,"hidden":false,"merged":[[1,1,1,4],[3,0,6,0],[3,1,6,1],[3,2,6,2],[3,3,6,3],[3,4,6,4],[3,5,6,5],[3,6,6,6],[3,7,6,7],[3,8,6,8],[7,0,9,0],[7,1,9,1],[7,2,9,2],[7,3,9,3],[7,4,9,4],[7,5,9,5],[7,6,9,6],[7,7,9,7],[7,8,9,8],[11,0,12,0],[11,1,12,1],[11,2,12,2],[11,3,12,3],[11,4,12,4],[11,5,12,5],[11,6,12,6],[11,7,12,7],[11,8,12,8],[13,8,16,8],[13,7,16,7],[13,6,16,6],[13,5,16,5],[13,4,16,4],[13,3,16,3],[13,2,16,2],[13,1,16,1],[13,0,16,0]]}
["Grunnforhold i tidlig fase - Statsbygg"]
["Naturfare",{"$f":"'2. Introduksjon til evaluering'!B4","v":"Prosjekttittel skrives inn her"},null,null,null,"Usikkerhet i data (oppgi høyeste mulige score)"]
["Faktorer","Vekttall","Score","Produkt","Forklaring til valg av score","Høy score","Produkt","Kommentarer/begrunnelser/usikkerheter","Potensielle stoppkriterier","Linker/kilder"]
["Snøskredfare",1,1,{"$f":"B4*C4","v":1},"0 Ikke sannsynlig, ingen skredsikring*, 1 Litt sannsynlig, litt skredsikring, 2 Sannsynlig, skredsikring 3 Svært sannsynlig, mye skredsikring",1,{"$f":"B4*F4","v":1},null,"Skredsikring kan bli svært kostbart dersom det er høy fare for snøskred. \n\nBygninger som er avgjørende for nasjonal og regional beredskap og krisehåndtering kan kun plasseres i skredfarlig område dersom sikkerheten ivaretas gjennom sikringstiltak, og beredskapen ikke svekkes ved et ev. skred.\n","Kart med bratthetsgrader til vurdering av snø- og jordskredfare:"]
[null,null,null,null,null,null,null,null,null,"https://temakart.nve.no/tema/bratthet"]
[null,null,null,null,null,null,null,null,null,"https://temakart.nve.no/tema/SnoskredAktsomhet"]
[null,null,null,null,null,null,null,null,null,"https://temakart.nve.no/tema/SnoSteinSkredAktsomhet"]
["Steinsprangfare",2,0,{"$f":"B8*C8","v":0},"0 Ikke sannsynlig, ingen skredsikring*, 1 Litt sannsynlig, litt skredsikring, 2 Sannsynlig, skredsikring, 3 Svært sannsynlig, mye skredsikring",1,{"$f":"B8*F8","v":2},null,"Skredsikring kan bli svært kostbart dersom det er høy fare for steinsprang.\n\nBygninger som er avgjørende for nasjonal og regional beredskap og krisehåndtering kan kun plasseres i skredfarlig område dersom sikkerheten ivaretas gjennom sikringstiltak, og beredskapen ikke svekkes ved et ev. skred.","https://temakart.nve.no/tema/SteinsprangAktsomhet"]
[null,null,null,null,null,null,null,null,null,"Kartet dekker ikke fjellskred. NVE har eget kart knyttet til faresoner for fjellskred:"]
[null,null,null,null,null,null,null,null,null,"https://temakart.nve.no/tema/Fjellskred"]
["Jord- og flomskredfare",3,2,{"$f":"B11*C11","v":6},"0 Ikke sannsynlig, ingen skredsikring**, 1 Litt sannsynlig, litt skredsikring, 2 Sannsynlig, skredsikring, 3 Svært sannsynlig, mye skredsikring",3,{"$f":"B11*F11","v":9},null,"Skredsikring kan bli svært kostbart dersom det er høy fare for jord- og flomskred.\n\nBygninger som er avgjørende for nasjonal og regional beredskap og krisehåndtering kan kun plasseres i skredfarlig område dersom sikkerheten ivaretas gjennom sikringstiltak, og beredskapen ikke svekkes ved et ev. skred.","https://temakart.nve.no/link/?link=jordflomskredaktsomhet"]
["Områdeskredfare",3,2,{"$f":"B12*C12","v":6},"0 Ikke sannsynlig, ingen skredsikring***, 1 Litt sannsynlig, litt skredsikring, 2 Sannsynlig, skredsikring, 3 Svært sannsynlig, mye skredsikring",3,{"$f":"B12*F12","v":9},null,"Skredsikring kan bli svært kostbart dersom det er høy fare for områdeskred.\n\nBygninger som er avgjørende for nasjonal og regional beredskap og krisehåndtering kan kun plasseres i skredfarlig område dersom det etableres sikringstiltak slik at beredskapen ikke svekkes ved et ev. skred.","Aktsomhetskart for kvikkleire viser potensielt skredutsatte områder. Generelt kan det påtreffes kvikkleire så lenge man er under marine grense. Marin grense er vist på kart. I innsynsløsningen er NADAG-boringer og kvikkleirerapporter også tilgjengelig:"]
[null,null,null,null,null,null,null,null,null,"https://temakart.nve.no/tema/Kvikkleire"]
["Flomfare",2,0,{"$f":"B14*C14","v":0},"0 Ikke sannsynlig, ingen flomsikring****, 1 Litt sannsynlig, litt flomsikring, 2 Sannsynlig, flomsikring, 3 Svært sannsynlig, mye flomsikring",1,{"$f":"B14*F14","v":2},null,"Flomsikring kan bli svært kostbart dersom det er høy fare for flom. \n\nByggverk hvor konsekvensen av en flom er særlig stor skal ikke plasseres i flomutsatt område. Dette gjelder byggverk som har nasjonal og regional betydning for beredskap og krisehåndtering, samt byggverk som omfattes av storulykkeforskriften.","NVEs Flomaktsomhetskart:"]
[null,null,null,null,null,null,null,null,null,"https://temakart.nve.no/tema/Flomaktsomhet"]
[null,null,null,null,null,null,null,null,null,"NVEs Flomfarekart:"]
[null,null,null,null,null,null,null,null,null,"https://temakart.nve.no/link/?link_flomsone"]
["Flodbølger",3,0,{"$f":"B18*C18","v":0},"0 Ikke sannsynlig, ingen sikring, 1 Litt sannsynlig, litt sikring, 2 Sannsynlig, sikring, 3 Svært sannsynlig, mye sikring",0,0,null,"Sikring kan bli svært kostbart dersom det er fare for flodbølger.\n\nFor øvrig som for flomfare.","https://temakart.nve.no/tema/fjellskred"]
["Total sum score",null,null,{"$f":"SUM(D4:D17)","v":13},null,null,{"$f":"SUM(G4:G17)","v":23}]
["Maks. oppnåelig vektet total sum",null,null,{"$f":"SUM(B4:B17)*3","v":33}]
[]
[]
[]
[]
["Veiledning for score:"]
["0 gjelder dersom;"]
["-          byggverk ligger utenfor aktsomhetsområde for skred/flom"]
["-          eller byggverk ligger innenfor aktsomhetsområde og faresone for skred/flom og sikkerheten er tilfredsstillende iht. gjeldende regelverk",null,null,null,null,null,null,null,"***Regelverk pbl, NVE 1/2019 og Eurokode 7 for områdeskred"]
["1, 2 og 3 gjelder dersom;",null,null,null,null,null,null,null,"Skredsikring ikke nødvendig dersom det ikke er aktiv erosjon og (tiltaksklasser er angitt i NVE 1/2019);"]
["-          byggverk ligger innenfor aktsomhetsområde eller faresone for skred/flom og sikkerheten er ikke er tilfredsstillende iht. gjeldende regelverk",null,null,null,null,null,null,null,"- byggverk ligger utenfor aktsomhetsområde for områdeskred"]
["Aktsomhetsområde er definert som områder der det potensielt kan være fare for skred, steinsprang, flom osv., uten at faren er undersøkt nærmere eller utredet. ",null,null,null,null,null,null,null,"- eller byggverk ligger utenfor influenssone til kritiske skråninger og de kritiske skråningene har"]
["Regelverk som er relevant er plan- og bygningsloven, NVE veileder 1/2019 og Eurokode 7, se nedenfor.",null,null,null,null,null,null,null,"                       sikkerhetsfaktor FC>1,2 og Fɸ>1,25"]
[null,null,null,null,null,null,null,null,"- eller byggverk ligger innenfor influenssone til kritiske skråninger og de kritiske skråningene har "]
["*Regelverk pbl for snøskred og steinsprang (fjellskred)",null,null,null,null,null,null,null,"                       sikkerhetsfaktor FC>1,4 og Fɸ>1,25  dersom byggverket ikke forverrer stabiliteten"]
["Skredsikring ikke nødvendig dersom (sikkerhetsklasser er angitt i pbl);",null,null,null,null,null,null,null,"                        eller FC>1,61 og Fɸ>1,25 dersom byggverket forverrer stabiliteten"]
["-          byggverk ligger utenfor aktsomhetsområde* for snøskred og steinsprang",null,null,null,null,null,null,null,"- eller byggverk er i tiltakskategori K0-K2 og forverrer ikke stabiliteten"]
["-          eller byggverk er i sikkerhetsklasse S1 og hvor største nominelle årlige sannsynlighet for snøskred er <1⸱10-2,",null,null,null,null,null,null,null,"- eller byggverk ligger i faresone for områdeskred som allerede er skredsikret tilstrekkelig"]
["-          eller byggverk er i sikkerhetsklasse S2 og hvor største nominelle årlige sannsynlighet for snøskred er <1⸱10-3, ",null,null,null,null,null,null,null,"                       til at NVE 1/2019 regelverk er tilfredsstilt for byggverkets tiltakskategori"]
["-          eller byggverk er i sikkerhetsklasse S3 og hvor største nominelle årlige sannsynlighet for snøskred er <2⸱10-4"]
[null,null,null,null,null,null,null,null,"****Regelverk pbl for flomfare"]
["**Regelverk pbl og Eurokode 7 for jord- og flomskred",null,null,null,null,null,null,null,"Flomsikring ikke nødvendig dersom (sikkerhetsklasser er angitt i pbl);"]
[" Skredsikring ikke nødvendig dersom (sikkerhetsklasser er angitt i pbl);",null,null,null,null,null,null,null,"-   byggverk ligger utenfor aktsomhetsområde for flomfare"]
["-          byggverk ligger utenfor aktsomhetsområde for jord- og flomskred",null,null,null,null,null,null,null,"-  eller byggverk er i sikkerhetsklasse F1 (liten konsekvens) og hvor største nominelle årlige sannsynlighet for flom er <5⸱10-2 "]
["-          eller byggverk er i sikkerhetsklasse S1 og hvor største nominelle årlige sannsynlighet for snøskred er <1⸱10-2,",null,null,null,null,null,null,null,"-   eller byggverk er i sikkerhetsklasse F2 (middels konsekvens) og hvor største nominelle årlige sannsynlighet for flom er <5⸱10-3"]
["-          eller byggverk er i sikkerhetsklasse S2 og hvor største nominelle årlige sannsynlighet for snøskred er <1⸱10-3, ",null,null,null,null,null,null,null,"-  eller byggverk er i sikkerhetsklasse F3 (stor konsekvens) og hvor største nominelle årlige sannsynlighet for flom er <1⸱103"]
["-          eller byggverk er i sikkerhetsklasse S3 og hvor største nominelle årlige sannsynlighet for snøskred er <2⸱10-4,"]
["-          eller kritiske skråninger har deterministisk sikkerhetsfaktoren Fc>1,4 og Fɸ>1,25"]

{"sheet":"5. Nærføring","index":4,"n_rows":24,"n_cols":10,"rows_kept":24,"cut":false,"hidden":false,"merged":[[1,1,1,4],[3,0,6,0],[3,1,6,1],[3,2,6,2],[3,3,6,3],[3,4,6,4],[3,5,6,5],[3,6,6,6],[3,7,6,7],[3,8,6,8],[7,0,8,0],[7,1,8,1],[7,2,8,2],[7,3,8,3],[7,4,8,4],[7,5,8,5],[7,6,8,6],[7,7,8,7],[7,8,8,8],[9,5,16,5],[9,6,16,6],[9,7,16,7],[9,8,16,8],[9,0,16,0],[9,1,16,1],[9,2,16,2],[9,3,16,3],[9,4,16,4]]}
["Grunnforhold i tidlig fase - Statsbygg"]
["Nærføring (avstand til)",{"$f":"'2. Introduksjon til evaluering'!B4","v":"Prosjekttittel skrives inn her"},null,null,null,"Usikkerhet i data (oppgi høyeste mulige score)"]
["Faktorer","Vekttall","Score","Produkt","Forklaring til valg av score","Høy score","Produkt","Kommentarer/begrunnelser/usikkerheter","Potensielle stoppkriterier","Linker/kilder"]
["Nærføring til setnings- og rystelsesømfintlig bebyggelse konstruksjoner og infrastruktur*",2,3,{"$f":"B4*C4","v":6},"0 >15*gravedybde , 1 5-15*gravedybde, 2 1-5*gravedybde, 3 <5m",null,{"$f":"B4*F4","v":0},null,"Tillatelse fra nabo må gis dersom det er behov for tiltak/sikring på naboeiendom for å kunne gjennomføre prosjektet. Veldig strenge krav til rystelser kan gjøre prosjektet vanskelig å gjennomføre.","Bygninger som på grunn av alder og fundamenteringsmetode kan være ømfintlige kan bl.a. finnes gjennom Miljødirektoratets kart:"]
[null,null,null,null,null,null,null,null,null,"http://miljoatlas.miljodirektoratet.no/KlientFull.htm?"]
[null,null,null,null,null,null,null,null,null,"hvor man under Kulturminner huker av for Bebyggelse eldre enn fra år 1900 (SEFRAK), Bygninger og kulturminner i Oslo (Gul liste) og Fredete bygninger."]
[null,null,null,null,null,null,null,null,null,"Google Maps og Google Streetview gir rask og enkel informasjon om naboområder."]
["Nærføring til vassdrag, åpne eller lukkede, eller hav/sjø",3,3,{"$f":"B8*C8","v":9},"0 >100m, 1 10-100m, 2 5-10m  3 <5m",3,{"$f":"B8*F8","v":9},null,null,"NVE Elvenett ELVIS er den landsdekkende elvenettverkdatabasen som NVE har etablert for vassdragene i Norge. Viser både åpne og lukkede vassdrag, der de lukkede er kjent."]
[null,null,null,null,null,null,null,null,null,"http://temakart.nve.no/tema/elvenett"]
["Konstruksjoner, infrastruktur, brønner og objekter i grunnen**",3,2,{"$f":"B10*C10","v":6},"0 Ingen , 1 Lett infrastruktur/objekter, 2 Noe infrastruktur/objekter, 3 Tung infrastruktur/objekter",3,{"$f":"B10*F10","v":9},null,"Tillatelse må gis for bygging tett inntil eller over konstruksjoner eller tung infrastruktur som ikke kan flyttes.","Flybilder og historiske flybilder:"]
[null,null,null,null,null,null,null,null,null,"http://norgeibilder.no"]
[null,null,null,null,null,null,null,null,null,"Brønner finnes fra nasjonal grunnvannsdatabase GRANADA:"]
[null,null,null,null,null,null,null,null,null,"http://geo.ngu.no/kart/granada_mobil"]
[null,null,null,null,null,null,null,null,null,"Forurenset grunn kan finnes gjennom Miljødirektoratets kart:"]
[null,null,null,null,null,null,null,null,null,"https://miljoatlas.miljodirektoratet.no/KlientFull.htm"]
[null,null,null,null,null,null,null,null,null,"Oversikt over ledningseiere og bestilling av kart:"]
[null,null,null,null,null,null,null,null,null,"https://ledningsportalen.no/"]
["Urbanisme",1,2,{"$f":"B18*C18","v":2},"0 Grisgrent strøk (ingen naboer), 1 Spredt bebyggelse (langt fra naboer), 2 Tettbygd strøk, 3 Midt i storby",3,{"$f":"B18*F18","v":3},null,"Vanskelig tilkomst til tomta kan være svært kostbart. ","https://www.norgeskart.no  "]
["Plass på tomta",2,3,{"$f":"B19*C19","v":6},"0 Svært god plass, lav utnyttelse 1 God plass, normal utnyttelse, 2 Dårlig plass, høy utnyttelse 3 Svært dårlig plass, svært høy utnyttelse",3,6,null,"Dårlig plass på tomta kan være svært kostbart.","Informasjon kan innhentes fra kunde, kommuneplan, reguleringsplan, m.m."]
["Total sum score",null,null,{"$f":"SUM(D4:D19)","v":29},null,null,{"$f":"SUM(G4:G19)","v":27}]
["Maks. oppnåelig vektet total sum",null,null,{"$f":"SUM(B4:B19)*3","v":33}]
[]
["* Gjelder i nærheten av tomta"]
["** Gjelder på tomta"]

{"sheet":"6. Forutsetning","index":5,"n_rows":14,"n_cols":10,"rows_kept":14,"cut":false,"hidden":false,"merged":[[8,0,9,0],[8,1,9,1],[8,2,9,2],[8,3,9,3],[8,4,9,4],[8,5,9,5],[8,6,9,6],[8,7,9,7],[8,8,9,8],[1,1,1,4]]}
["Grunnforhold i tidlig fase - Statsbygg"]
["Forutsetninger",{"$f":"'2. Introduksjon til evaluering'!B4","v":"Prosjekttittel skrives inn her"},null,null,null,"Usikkerhet i data (oppgi høyeste mulige score)"]
["Faktorer","Vekttall","Score","Produkt","Forklaring til valg av score","Høy score","Produkt","Kommentarer/begrunnelser/usikkerheter","Potensielle stoppkriterier","Linker/kilder"]
["Hvor vanlig er det som skal bygges?",2,2,{"$f":"B4*C4","v":4},"0 Veldig vanlig, standard bygg og konstruksjon, 1 Vanlig, 2 Uvanlig, sjeldne bygg og konstruksjoner, 3 Veldig uvanlig, aldri vært bygd før",1,{"$f":"B4*F4","v":2}]
["Lokalkunnskap",1,2,{"$f":"B5*C5","v":2},"0 Mye, 1 Ganske mye, 2 Ganske lite, 3 Ingen",2,{"$f":"B5*F5","v":2}]
["Setnings- og vibrasjonsømfintlighet*",2,3,{"$f":"B6*C6","v":6},"0 Ingen, 1 Lite, 2 Middels, 3 Veldig",3,6]
["Etasjer under terreng, gravedybder",3,2,{"$f":"B7*C7","v":6},"0 Ingen et., gravedybder 0-2m , 1 1 et., gravedybder 2-5m, 2 2 et., gravedybder 5-8m, 3 >2 et., gravedybder >8m",3,9,null,"Gravedybder >20 m er ofte svært kostbart (kostnadene er ofte eksponensielle med gravedybden). "]
["Etasjer over terreng",1,2,2,"0 1-2 et. , 1 3-4 et., 2 4-7 et., 3 >7",3,3]
["Pågående terrengsetninger",3,2,{"$f":"B9*C9","v":6},"0 Ingen , 1 1-3 mm/år, 2 3-7 mm/år, 3 >7 mm/år",3,{"$f":"B9*F9","v":9},null,"Normalt anbefales det ikke å etablere bygg på tomter med pågående terrengsetninger >2cm.","Kart over landsdekkende radarmålinger av bakkebevegelser fra satellitt (INSAR):"]
[null,null,null,null,null,null,null,null,null,"https://insar.ngu.no"]
["Total sum score",null,null,{"$f":"SUM(D4:D9)","v":26},null,null,{"$f":"SUM(G4:G9)","v":31}]
["Maks. oppnåelig vektet total sum",null,null,{"$f":"SUM(B4:B9)*3","v":36}]
[]
["* Gjelder selve byggeprosjektet"]

{"sheet":"7. Miljø","index":6,"n_rows":30,"n_cols":10,"rows_kept":30,"cut":false,"hidden":false,"merged":[[3,8,6,8],[1,1,1,4],[3,0,6,0],[3,1,6,1],[3,2,6,2],[3,3,6,3],[3,4,6,4],[3,5,6,5],[3,6,6,6],[3,7,6,7],[7,8,10,8],[11,0,17,0],[11,1,17,1],[11,3,17,3],[11,2,17,2],[11,4,17,4],[11,5,17,5],[11,6,17,6],[11,7,17,7],[11,8,17,8],[7,0,10,0],[7,1,10,1],[7,2,10,2],[7,3,10,3],[7,4,10,4],[7,5,10,5],[7,6,10,6],[7,7,10,7],[18,5,20,5],[18,6,20,6],[18,7,20,7],[18,8,20,8],[21,0,25,0],[21,1,25,1],[21,2,25,2],[21,3,25,3],[21,4,25,4],[21,5,25,5],[21,6,25,6],[21,7,25,7],[21,8,25,8],[18,0,20,0],[18,1,20,1],[18,2,20,2],[18,3,20,3],[18,4,20,4]]}
["Grunnforhold i tidlig fase- Statsbygg"]
["Miljø",{"$f":"'2. Introduksjon til evaluering'!B4","v":"Prosjekttittel skrives inn her"},null,null,null,"Usikkerhet i data (oppgi høyeste mulige score)"]
["Faktorer","Vekttall","Score","Sum","Forklaring til valg av score","Høy score","Produkt","Kommentarer/begrunnelser/usikkerheter","Potensielle stoppkriterier","Linker/kilder"]
["Forurenset grunn",2,3,{"$f":"B4*C4","v":6},"0 Tilstandsklasse 1, rent, 1 Tilstandsklasse 2-3, inert, 2 Tilstandsklasse 2-5, ordinert avfall, 3 Tilstandsklasse >5, farlig avfall",3,{"$f":"B4*F4","v":6},null,"Bygging på deponier eller i områder med gass i grunnen anbefales ikke.","Registrert forurenset grunn finnes gjennom Miljødirektoratets kart:"]
[null,null,null,null,null,null,null,null,null,"https://miljoatlas.miljodirektoratet.no/KlientFull.htm"]
[null,null,null,null,null,null,null,null,null,"hvor man huker av for Forurensning og Støy → Forurenset grunn."]
[null,null,null,null,null,null,null,null,null,"Flybilder, grunnundersøkelser, databaser, m.m. bør også gjennomgås."]
["Radon",3,1,{"$f":"B8*C8","v":3},"0 Stedsspesifikke målinger som viser lave verdier, 1 Moderat til lav aktsomhetsgrad, 2 Høy aktsomhetsgrad, 3 Svært høy  aktsomhetsgrad eller usikkert",3,{"$f":"B8*F8","v":9},null,null,"Det nasjonale aktsomhetskartet for radon viser hvilke områder i Norge som kan være radonutsatte:"]
[null,null,null,null,null,null,null,null,null,"https://geo.ngu.no/kart/radon_mobil"]
[null,null,null,null,null,null,null,null,null,"Se NGUs alunskiferkart for vurdering av hensynssoner for radon iht. pbl.:"]
[null,null,null,null,null,null,null,null,null,"https://www.ngu.no/sites/default/files/alunskifer_ny.pdf"]
["Kontakt med svartskifer, alunskifer, syredannende bergarter (eller i nærheten)",3,2,{"$f":"B12*C12","v":6},"0 Svært lite sannsynlig, 1 Lite sannsynlig, 2 Sannsynlig, 3 Svært sannsynlig",3,{"$f":"B12*F12","v":9},null,"Mangel på deponikapasitet.","NGUs berggrunnskart:"]
[null,null,null,null,null,null,null,null,null,"https://geo.ngu.no/kart/berggrunn_mobil"]
[null,null,null,null,null,null,null,null,null,"Merk at kartet i noen tilfeller ikke er helt nøyaktig, så f.eks. dersom det er svartskifer i nærheten av tomta så kan det ikke avskrives at det også er svartskifer på tomta selv om berggrunnskartet ikke viser det. "]
[null,null,null,null,null,null,null,null,null,"Kart i kapittel 6:"]
[null,null,null,null,null,null,null,null,null,"http://www.miljødirektoratet.no/globalassets/publikasjoner/M310/M310.pdf"]
[null,null,null,null,null,null,null,null,null,"Se NGUs alunskiferkart for vurdering av hensynssoner for radon iht. pbl.:"]
[null,null,null,null,null,null,null,null,null,"http://www.ngu.no/sites/default/files/alunskifer_ny.pdf"]
["Kontakt med kulturminner*",3,2,{"$f":"B19*C19","v":6},"0 Ingen, 1 Lite sannsynlig, 2 Sannsynlig, 3 Svært sannsynlig eller påvist",1,{"$f":"B19*F19","v":3},null,"Fredning, byggeforbud.","Kulturminner finnes gjennom Miljødirektoratets kart:"]
[null,null,null,null,null,null,null,null,null,"http://miljoatlas.miljodirektoratet.no/KlientFull.htm"]
[null,null,null,null,null,null,null,null,null,"hvor man huker av for Kulturminner."]
["Kontakt med naturvern/naturforvaltning/naturmangfold",1,3,{"$f":"B22*C22","v":3},"0 Ingen, 1 Lite sannsynlig, 2 Sannsynlig, 3 Svært sannsynlig eller påvist ",2,{"$f":"B22*F22","v":2},null,"Markaloven, fredning, byggeforbud.","Verneområder finnes gjennom Miljødirektoratets kart:"]
[null,null,null,null,null,null,null,null,null,"http://miljoatlas.miljodirektoratet.no/KlientFull.htm"]
[null,null,null,null,null,null,null,null,null,"hvor man huker av for Naturområder på land."]
[null,null,null,null,null,null,null,null,null,"Se også Geologisk arv:"]
[null,null,null,null,null,null,null,null,null,"http://geo.ngu.no/kart/geologiskarv_mobil"]
["Total sum score",null,null,{"$f":"SUM(D4:D25)","v":24},null,null,{"$f":"SUM(G4:G25)","v":29}]
["Maks. oppnåelig vektet total sum",null,null,{"$f":"SUM(B4:B25)*3","v":36}]
[]
["* Gjelder der kulturminner gir økte geotekniske tiltak og kostnader"]

{"sheet":"8. Resultat og plott","index":7,"n_rows":8,"n_cols":8,"rows_kept":8,"cut":false,"hidden":false,"merged":[[1,3,1,7]]}
[null,"Resultater:"]
[null,"Sum av resultater",null,{"$f":"'1. Startside'!B4","v":"Prosjekttittel skrive inn her"}]
[null,"Tittel",null,"Maks. oppnåelig total sum","Maks. oppnåelig vektet total sum","Total poengsum verste scenario","Total poengsum","Relativ poengsum"]
[null,{"$f":"'3. Topografi og grunnforhold'!A2","v":"Topografi og grunnforhold"},null,{"$f":"3*3*6","v":54},{"$f":"'3. Topografi og grunnforhold'!D34","v":42},{"$f":"'3. Topografi og grunnforhold'!G33","v":38},{"$f":"'3. Topografi og grunnforhold'!D33","v":20},{"$f":"G4/D4","v":0.37037037037037035}]
[null,{"$f":"'4. Naturfare'!A2","v":"Naturfare"},null,{"$f":"3*3*6","v":54},{"$f":"'4. Naturfare'!D20","v":33},{"$f":"'4. Naturfare'!G19","v":23},{"$f":"'4. Naturfare'!D19","v":13},{"$f":"G5/D5","v":0.24074074074074073}]
[null,{"$f":"'5. Nærføring'!A2","v":"Nærføring (avstand til)"},null,{"$f":"3*3*5","v":45},{"$f":"'5. Nærføring'!D21","v":33},{"$f":"'5. Nærføring'!G20","v":27},{"$f":"'5. Nærføring'!D20","v":29},{"$f":"G6/D6","v":0.64444444444444449}]
[null,{"$f":"'6. Forutsetning'!A2","v":"Forutsetninger"},null,{"$f":"3*3*6","v":54},{"$f":"'6. Forutsetning'!D12","v":36},{"$f":"'6. Forutsetning'!G11","v":31},{"$f":"'6. Forutsetning'!D11","v":26},{"$f":"G7/D7","v":0.48148148148148145}]
[null,{"$f":"'7. Miljø'!A2","v":"Miljø"},null,{"$f":"3*3*5","v":45},{"$f":"'7. Miljø'!D28","v":36},{"$f":"'7. Miljø'!G27","v":29},{"$f":"'7. Miljø'!D27","v":24},{"$f":"G8/D8","v":0.53333333333333333}]

{"sheet":"Logg","index":8,"n_rows":29,"n_cols":2,"rows_kept":29,"cut":false,"hidden":false,"merged":[]}
["Revisjonslogg:"]
["Dato","Endring:"]
["2022-03-16","Oppdatert versjon etter møte med Statsbygg "]
[null,"og tilbakemeldinger januar 2022"]
[]
["2022-03-23","3 Introduksjon til evaluering - lagt til linjer og vektall"]
[null,"for faktorene \"Løsmassemektighet\" og \"Behov for"]
[null,"sprengning under fundamenter eller behov for "]
[null,"bergrom under terreng\""]
[null,"Lagt til vekttall for faktorene "]
[]
[null,"Etasjer under terreng, gravedybder"]
[null,"Etasjer over terreng"]
[]
[null,"5 Naturfare"]
[null,"Lagt til definisjon av aktsomhetsområde fra NVE"]
[]
[null,"Ark 4, 5, 6, 7 og 8"]
[null,"Endret tekst fra Maks. oppnåelig total sum"]
[null,"til Maks. oppnåelig vektet total sum"]
[]
["24-25.03.2022: Sfe","Formatfunksjonene er forbedret."]
["2022-11-01","Redigerte startside, flyttet kontrollspørsmål fra startsiden inn i ark 3 til "]
[null,"7 der de hørte hjemme. La inn kolonner for å ivareta usikkerhet  i data."]
[null,"Resultater og plott viser samme usikkerhet."]
["15.12.2022: Sfe","All links are working well + edit formatting + open always the start side"]
["03.01.2022: ON","Rettet opp småfeil i arket, revidert noe av teksten, forbedret layouten"]
[null,"angående lenker"]
["14.03.2023: Sfe","Edit formatting + plots"]